bitfinex/quotes_SOLUSD_20220302
["timestamp","ask_amount","ask_price","bid_price","bid_amount"]
[1646222348025,60.55598,104.84,104.77,0.25]
[1646222348228,62.37154856,104.84,104.75,29.8999]
[1646222348427,67.37154856,104.84,104.75,30.1499]
[1646222348626,62.37154856,104.84,104.75,30.1499]
[1646222349029,60.55598,104.84,104.76,112.569537]
[1646222349327,60.55598,104.84,104.76,112.819537]
[1646222349727,60.55598,104.84,104.76,112.569537]
[1646222349927,65.55598,104.84,104.76,112.569537]
[1646222351430,60.55598,104.84,104.76,112.569537]
[1646222359159,60.55598,104.84,104.76,116.384537]
[1646222361464,60.55598,104.84,104.76,112.569537]
[1646222361863,60.55598,104.84,104.76,208.609537]
[1646222362063,0.4792195,104.84,104.78,57.57]
[1646222362664,0.4792195,104.84,104.78,153.86]
[1646222363369,0.4792195,104.84,104.8,153.61]
[1646222363567,0.4792195,104.84,104.82,57.57]
[1646222363764,0.4792195,104.84,104.83,3.03219997]
[1646222364166,0.4792195,104.84,104.83,23.00748818]
[1646222364366,228.41978537,104.94,104.85,153.61]
[1646222364565,48.1771,104.96,104.87,57.57]
[1646222364765,5.0,104.95,104.88,0.50602673]
[1646222364966,5.0,104.95,104.87,0.25]
[1646222365367,57.75568884,104.94,104.87,44.3481483]
[1646222365568,3.811,104.93,104.85,11.54]
[1646222365767,6.13306641,104.93,104.85,11.54]
[1646222365970,6.13306641,104.93,104.83,24.4231]
[1646222366168,27.24052471,104.92,104.83,35.9631]
[1646222366369,3.814,104.91,104.83,35.9631]
[1646222366571,28.40660545,104.9,104.83,24.4231]
[1646222366768,30.7227805,104.9,104.83,24.4231]
[1646222366970,32.59948334,104.9,104.81,36.1462]
[1646222367168,2.31617505,104.89,104.82,6.0]
[1646222367368,2.31617505,104.89,104.82,5.0]
[1646222367968,72.06558884,104.88,104.8,50.4254749]
[1646222368369,74.38176389,104.88,104.8,50.4254749]
[1646222371671,74.38176389,104.88,104.79,81.1817]
[1646222372470,74.38176389,104.88,104.79,23.6117]
[1646222372671,76.25628949,104.88,104.79,81.43835719]
[1646222372970,90.58578949,104.88,104.79,81.43835719]
[1646222374173,90.58578949,104.88,104.79,23.6117]
[1646222374677,109.72020546,104.88,104.76,34.7215]
[1646222374873,29.24462966,104.87,104.77,24.8127]
[1646222375073,14.314,104.85,104.77,82.3827]
[1646222375275,45.98260025,104.84,104.77,24.8127]
[1646222375476,45.98260025,104.84,104.77,28.6277]
[1646222375975,45.98260025,104.84,104.77,24.8127]
[1646222376379,60.29760025,104.84,104.77,24.8127]
[1646222377681,60.29760025,104.84,104.78,19.8460524]
[1646222377881,60.29760025,104.84,104.78,20.0960524]
[1646222378082,74.96690025,104.84,104.78,20.0960524]
[1646222378582,74.96690025,104.84,104.78,0.25]
[1646222378884,74.96690025,104.84,104.77,24.8127]
[1646222379283,171.00690025,104.84,104.74,3.815]
[1646222379483,121.53044582,104.83,104.74,51.76774129]
[1646222379683,14.3222,104.81,104.74,51.76774129]
[1646222379888,45.98260025,104.8,104.74,51.76774129]
[1646222380085,45.98260025,104.8,104.73,23.3553]
[1646222380986,14.3218,104.79,104.71,3.817]
[1646222381186,14.3218,104.79,104.71,26.9319]
[1646222381687,16.63797505,104.79,104.71,26.9319]
[1646222381886,16.63797505,104.79,104.71,23.1149]
[1646222382092,25.87179404,104.78,104.72,52.92517165]
[1646222382286,14.3245,104.77,104.7,23.0659]
[1646222383087,14.3245,104.77,104.69,28.8103]
[1646222383286,43.38978817,104.76,104.7,56.64155257]
[1646222383589,57.71578817,104.76,104.7,56.64155257]
[1646222384988,14.326,104.76,104.7,56.64155257]
[1646222386096,69.64654803,104.76,104.7,56.64155257]
[1646222395324,69.64654803,104.76,104.69,24.9923]
[1646222396325,69.64654803,104.76,104.7,46.75836948]
[1646222396526,69.64654803,104.76,104.66,110.6736721]
[1646222396728,24.0112,104.75,104.67,30.3697]
[1646222396927,38.3395,104.75,104.67,30.3697]
[1646222397128,39.8825903,104.75,104.67,24.3697]
[1646222397527,16.53384626,104.74,104.67,74.51644061]
[1646222398527,30.86314626,104.74,104.67,74.51644061]
[1646222399330,30.86314626,104.74,104.66,3.819]
[1646222399331,126.90314626,104.74,104.66,3.819]
[1646222399528,110.3763,104.7,104.59,77.7917]
[1646222399728,112.20599349,104.7,104.6,24.2321]
[1646222399932,42.0410339,104.69,104.6,24.2321]
[1646222400328,63.06182306,104.68,104.61,43.62045512]
[1646222400529,159.10182306,104.68,104.61,43.62045512]
[1646222400728,20.99336843,104.67,104.61,43.62045512]
[1646222400929,27.46985583,104.66,104.61,43.62045512]
[1646222401131,41.80965583,104.66,104.55,43.42110866]
[1646222401332,60.48694043,104.66,104.56,6.0]
[1646222401931,60.48694043,104.66,104.56,30.2393]
[1646222402130,60.48694043,104.66,104.57,45.05499179]
[1646222402328,160.57002165,104.66,104.57,45.05499179]
[1646222402529,18.6772846,104.65,104.57,45.05499179]
[1646222402729,58.72703846,104.64,104.57,45.05499179]
[1646222402931,14.3425,104.64,104.57,45.05499179]
[1646222403932,73.94558154,104.64,104.57,45.05499179]
[1646222404132,73.94558154,104.64,104.57,45.30499179]
[1646222405536,123.341,104.67,104.57,102.87499179]
[1646222405537,14.3405,104.66,104.57,102.87499179]
[1646222405738,46.188,104.67,104.57,222.88189179]
[1646222405939,11.54,104.7,104.59,57.57]
[1646222406140,11.54,104.7,104.6,28.7183]
[1646222406340,11.54,104.7,104.6,86.5383]
[1646222406540,11.54,104.7,104.61,87.01061392]
[1646222406541,60.16654315,104.69,104.61,87.01061392]
[1646222407242,60.16654315,104.69,104.61,29.44061392]
[1646222408043,14.3377,104.68,104.61,29.44061392]
[1646222409047,11.68785114,104.67,104.61,29.44061392]
[1646222411149,14.3377,104.68,104.61,29.44061392]
[1646222411348,14.3377,104.68,104.61,87.01061392]
[1646222412852,21.61668536,104.67,104.61,29.44061392]
[1646222414255,35.95518536,104.67,104.59,5.0]
[1646222414450,35.95518536,104.67,104.56,50.1173]
[1646222414451,35.95518536,104.67,104.57,24.6556]
[1646222414651,169.34348194,104.67,104.57,24.6556]
[1646222414854,192.22428627,104.67,104.57,24.6556]
[1646222415052,79.24766235,104.67,104.57,24.6556]
[1646222415251,79.24766235,104.67,104.58,56.72499463]
[1646222415855,35.95518536,104.67,104.58,56.72499463]
[1646222417056,147.66734261,104.67,104.58,56.72499463]
[1646222417360,204.18175872,104.67,104.57,24.6556]
[1646222418155,209.18175872,104.67,104.57,24.6556]
[1646222418570,204.18175872,104.67,104.57,24.6556]
[1646222418770,14.3436,104.64,104.57,24.6556]
[1646222418971,14.3436,104.64,104.56,81.87595561]
[1646222418972,27.11406245,104.63,104.56,81.87595561]
[1646222419471,27.11406245,104.63,104.56,24.2393]
[1646222420074,41.45796245,104.63,104.56,24.4893]
[1646222420874,41.45796245,104.63,104.56,24.2393]
[1646222421473,137.49796245,104.63,104.54,23.5637]
[1646222421677,139.15567481,104.63,104.54,22.56446081]
[1646222421874,3.823,104.62,104.54,22.56446081]
[1646222422177,14.3482,104.6,104.54,22.56446081]
[1646222422477,42.96464924,104.59,104.55,58.53001983]
[1646222423076,14.3482,104.6,104.55,58.53001983]
[1646222424078,59.0771589,104.6,104.55,58.53001983]
[1646222426785,59.0771589,104.6,104.54,22.56446081]
[1646222426982,59.0771589,104.6,104.51,23.8886]
[1646222427183,59.0771589,104.6,104.51,24.1386]
[1646222427782,59.0771589,104.6,104.51,74.76569886]
[1646222427982,59.0771589,104.6,104.51,74.51569886]
[1646222430088,155.1171589,104.6,104.51,74.51569886]
[1646222430286,179.62841778,104.6,104.51,74.51569886]
[1646222430487,183.45341778,104.6,104.51,74.51569886]
[1646222430687,87.41341778,104.6,104.51,74.51569886]
[1646222430889,62.9021589,104.6,104.51,74.51569886]
[1646222431089,59.0771589,104.6,104.52,57.57]
[1646222431288,59.0771589,104.6,104.53,23.86850685]
[1646222442919,59.0771589,104.6,104.52,23.943]
[1646222443116,59.0771589,104.6,104.52,81.513]
[1646222443917,59.0771589,104.6,104.53,109.09056557]
[1646222444924,59.0771589,104.6,104.53,51.52056557]
[1646222445125,81.95796323,104.6,104.53,51.52056557]
[1646222445324,81.95796323,104.6,104.52,23.943]
[1646222446725,81.95796323,104.6,104.53,30.58721325]
[1646222449226,97.32296323,104.6,104.53,30.58721325]
[1646222449629,97.32296323,104.6,104.52,23.943]
[1646222450029,99.6389056,104.6,104.52,23.943]
[1646222450429,197.37545284,104.6,104.51,23.8886]
[1646222450632,197.37545284,104.6,104.51,77.21630916]
[1646222451531,101.33545284,104.6,104.51,77.21630916]
[1646222451933,197.37545284,104.6,104.51,77.21630916]
[1646222453241,5.0,104.57,104.51,77.21630916]
[1646222453435,41.47903539,104.56,104.51,23.8886]
[1646222454437,41.47903539,104.56,104.52,59.8298995]
[1646222455341,14.3536,104.56,104.52,59.8298995]
[1646222456340,73.84651973,104.56,104.52,59.8298995]
[1646222457046,73.84651973,104.56,104.51,23.8886]
[1646222458044,73.84651973,104.56,104.52,45.6534706]
[1646222458947,14.3536,104.56,104.52,45.6534706]
[1646222460146,71.38929013,104.56,104.52,45.6534706]
[1646222460547,14.3536,104.56,104.52,45.6534706]
[1646222460756,14.3512,104.58,104.52,45.6534706]
[1646222461552,72.23007162,104.58,104.52,45.6534706]
[1646222464754,37.22950433,104.6,104.52,45.6534706]
[1646222464955,37.22950433,104.6,104.52,69.7700706]
[1646222465154,50.70950433,104.62,104.52,127.5900706]
[1646222465454,5.0,104.62,104.53,0.47069437]
[1646222465654,5.0,104.62,104.55,86.41213511]
[1646222465855,5.0,104.62,104.55,86.66213511]
[1646222466261,5.0,104.62,104.55,101.00473511]
[1646222466460,14.343,104.64,104.55,108.56273511]
[1646222466660,19.343,104.64,104.57,57.57]
[1646222466861,5.0,104.64,104.57,57.82]
[1646222467061,27.88080433,104.64,104.56,23.648]
[1646222467259,25.1967467,104.64,104.55,52.32403511]
[1646222467460,77.31967824,104.63,104.55,52.32403511]
[1646222467659,81.14267824,104.63,104.55,52.32403511]
[1646222467860,22.88080433,104.62,104.55,52.32403511]
[1646222468062,16.59305538,104.61,104.55,52.32403511]
[1646222468660,30.94175538,104.61,104.55,52.32403511]
[1646222472084,14.3487,104.61,104.55,52.32403511]
[1646222472683,72.05675122,104.64,104.55,109.89403511]
[1646222472884,14.3446,104.63,104.56,80.2479]
[1646222473085,67.08503428,104.63,104.57,44.11869496]
[1646222473687,69.60974366,104.65,104.57,101.68869496]
[1646222473886,3.823,104.64,104.57,101.93869496]
[1646222474686,56.94033046,104.64,104.57,101.93869496]
[1646222475287,14.3418,104.65,104.57,101.93869496]
[1646222476292,70.25657643,104.65,104.57,101.93869496]
[1646222477791,14.3418,104.65,104.57,101.93869496]
[1646222477998,18.1621,104.67,104.57,212.31749496]
[1646222478191,14.3391,104.67,104.59,57.57]
[1646222478391,14.3391,104.67,104.59,57.82]
[1646222478800,14.3391,104.67,104.6,30.37691075]
[1646222478995,14.3391,104.67,104.6,112.31281075]
[1646222479195,49.32711955,104.68,104.6,112.31281075]
[1646222479395,33.22598456,104.69,104.6,112.31281075]
[1646222479795,54.66084222,104.69,104.6,112.31281075]
[1646222479996,35.77125766,104.69,104.6,112.31281075]
[1646222480398,86.87802563,104.69,104.6,112.31281075]
[1646222480999,35.77125766,104.69,104.6,112.31281075]
[1646222481403,14.15350009,104.69,104.6,208.35281075]
[1646222482015,14.15350009,104.69,104.6,219.89281075]
[1646222482205,82.37755766,104.71,104.62,57.57]
[1646222482404,82.37755766,104.71,104.63,126.16689496]
[1646222482607,82.37755766,104.71,104.63,126.41689496]
[1646222483308,35.76845766,104.71,104.63,126.41689496]
[1646222484106,20.065006,104.72,104.63,222.45689496]
[1646222484305,35.76565766,104.73,104.63,222.45689496]
[1646222484506,35.76565766,104.73,104.63,233.99689496]
[1646222485210,56.63352472,104.72,104.65,57.57]
[1646222485408,56.63352472,104.72,104.66,30.37691075]
[1646222485610,78.06838238,104.72,104.66,30.37691075]
[1646222488615,56.63352472,104.72,104.66,30.37691075]
[1646222490035,14.3308,104.73,104.66,30.37691075]
[1646222490439,14.3308,104.73,104.66,87.94691075]
[1646222490639,34.393206,104.75,104.66,184.23691075]
[1646222490839,25.065006,104.77,104.68,57.57]
[1646222491037,49.14648703,104.77,104.69,125.15559496]
[1646222491237,70.58134469,104.77,104.69,67.58559496]
[1646222491438,74.40034469,104.77,104.69,67.58559496]
[1646222491839,79.40034469,104.77,104.69,67.58559496]
[1646222492236,101.1561261,104.77,104.69,67.58559496]
[1646222492438,97.3371261,104.77,104.69,67.58559496]
[1646222493040,22.70790726,104.75,104.69,67.58559496]
[1646222496145,22.70790726,104.75,104.69,125.15559496]
[1646222496546,14.3268,104.76,104.69,125.15559496]
[1646222496947,19.3241,104.78,104.69,125.15559496]
[1646222497447,46.585553,104.77,104.69,125.15559496]
[1646222497647,46.585553,104.77,104.69,125.40559496]
[1646222499250,14.3241,104.78,104.69,125.40559496]
[1646222500048,14.3241,104.78,104.69,139.72829496]
[1646222500348,67.35189643,104.78,104.69,139.72829496]
[1646222501753,88.78675409,104.78,104.69,143.54729496]
[1646222501951,108.85176009,104.78,104.69,71.65459496]
[1646222502150,110.37538001,104.78,104.69,67.83559496]
[1646222502350,115.37538001,104.78,104.69,67.83559496]
[1646222502751,119.19438001,104.78,104.69,67.83559496]
[1646222504052,114.19438001,104.78,104.69,67.83559496]
[1646222504255,119.19438001,104.78,104.69,67.58559496]
[1646222504452,114.19438001,104.78,104.69,67.58559496]
[1646222504852,119.19438001,104.78,104.69,67.58559496]
[1646222505055,114.19438001,104.78,104.69,67.58559496]
[1646222505253,18.82659786,104.76,104.69,67.58559496]
[1646222505455,33.15309786,104.76,104.69,67.58559496]
[1646222507758,33.15309786,104.76,104.69,125.15559496]
[1646222510163,33.15309786,104.76,104.69,67.58559496]
[1646222511172,33.15309786,104.76,104.69,125.15559496]
[1646222511365,24.0257,104.77,104.69,125.15559496]
[1646222512568,24.0257,104.77,104.69,125.40559496]
[1646222512769,38.3504,104.77,104.69,125.40559496]
[1646222512968,38.3504,104.77,104.69,129.22459496]
[1646222514670,38.3504,104.77,104.69,143.54739496]
[1646222514869,38.3504,104.77,104.69,239.58739496]
[1646222515168,14.3247,104.77,104.69,239.58739496]
[1646222515367,37.1503,104.79,104.69,253.42643499]
[1646222515870,78.65016366,104.79,104.69,154.83739496]
[1646222516090,49.74908321,104.78,104.69,154.83739496]
[1646222516669,68.14676366,104.79,104.69,155.08739496]
[1646222517070,14.3239,104.78,104.69,251.12739496]
[1646222518071,14.3239,104.78,104.69,247.30839496]
[1646222518678,14.3239,104.78,104.69,249.85743499]
[1646222520877,14.3239,104.78,104.71,57.57]
[1646222522562,14.3239,104.78,104.7,57.57]
[1646222522759,14.3239,104.78,104.7,57.82]
[1646222522961,38.9649,104.78,104.71,22.9344]
[1646222526983,40.61758234,104.78,104.71,22.9344]
[1646222528686,9.46272104,104.77,104.71,22.9344]
[1646222529288,23.78732104,104.77,104.71,22.9344]
[1646222534197,23.78732104,104.77,104.69,44.11869496]
[1646222534397,23.78732104,104.77,104.69,66.83319496]
[1646222535999,23.78732104,104.77,104.69,220.69319496]
[1646222536198,9.46272104,104.77,104.69,236.05219496]
[1646222536997,9.46272104,104.77,104.71,57.57]
[1646222537199,9.46272104,104.77,104.69,156.88373499]
[1646222537399,23.78742104,104.77,104.69,131.02123499]
[1646222541199,12.28450366,104.76,104.69,131.02123499]
[1646222541406,26.61060366,104.76,104.69,70.90219496]
[1646222541603,14.3261,104.76,104.69,70.90219496]
[1646222542402,38.1644,104.76,104.69,70.90219496]
[1646222542804,9.46272104,104.75,104.69,70.90219496]
[1646222546911,112.37615766,104.79,104.7,237.57]
[1646222547110,38.9918,104.78,104.71,82.3398]
[1646222547912,38.9918,104.78,104.72,20.91418972]
[1646222549108,24.6679,104.78,104.72,20.91418972]
[1646222549511,24.6679,104.78,104.72,78.48418972]
[1646222550311,44.26275766,104.79,104.72,78.48418972]
[1646222550512,22.8279,104.79,104.72,78.73418972]
[1646222550712,22.8279,104.79,104.72,90.27418972]
[1646222554911,14.3212,104.8,104.72,90.27418972]
[1646222555113,18.1364,104.82,104.74,57.57]
[1646222555314,5.0,104.83,104.74,69.36]
[1646222555514,73.23847557,104.85,104.74,71.90904003]
[1646222555714,97.16717557,104.85,104.75,81.7769]
[1646222556014,97.16717557,104.85,104.76,42.98956068]
[1646222556215,13.36400064,104.84,104.77,24.2069]
[1646222556425,13.36400064,104.84,104.78,22.043324]
[1646222556619,27.67980064,104.84,104.78,22.043324]
[1646222557115,14.3158,104.84,104.78,22.043324]
[1646222557344,23.9287,104.85,104.78,22.043324]
[1646222557716,23.9287,104.85,104.78,22.293324]
[1646222558627,23.9287,104.85,104.78,79.863324]
[1646222559021,23.9287,104.85,104.78,83.678324]
[1646222559217,23.9287,104.85,104.78,86.22736403]
[1646222559417,26.10079798,104.88,104.78,86.22736403]
[1646222559617,22.6378,104.87,104.79,81.5616]
[1646222559922,22.6378,104.87,104.8,42.98956068]
[1646222560119,22.6378,104.87,104.8,43.23956068]
[1646222560317,22.6378,104.87,104.8,100.80956068]
[1646222561622,38.5219,104.88,104.8,118.93236068]
[1646222561820,24.2115,104.88,104.82,57.57]
[1646222562019,22.6034,104.89,104.82,57.82]
[1646222562620,22.6034,104.89,104.83,22.043324]
[1646222562821,22.6034,104.89,104.83,22.293324]
[1646222563221,22.6034,104.89,104.83,45.970124]
[1646222564021,22.6034,104.89,104.83,103.540124]
[1646222568534,22.6034,104.89,104.83,103.290124]
[1646222569236,37.0017,104.92,104.83,103.290124]
[1646222569538,37.0017,104.92,104.84,63.57]
[1646222569734,22.6971,104.92,104.84,63.57]
[1646222569933,22.6971,104.92,104.85,24.1762]
[1646222570134,22.6971,104.92,104.85,24.4262]
[1646222570336,22.6971,104.92,104.86,42.98956068]
[1646222570535,22.6971,104.92,104.86,43.23956068]
[1646222570736,22.6971,104.92,104.86,42.98956068]
[1646222571348,49.07145092,104.92,104.86,42.98956068]
[1646222571739,22.6971,104.92,104.86,42.98956068]
[1646222572141,37.0012,104.92,104.86,42.98956068]
[1646222573160,22.34255235,104.91,104.86,42.98956068]
[1646222573361,14.3067,104.9,104.86,42.98956068]
[1646222573558,58.97456297,104.89,104.86,42.98956068]
[1646222573961,58.97456297,104.89,104.83,23.7506]
[1646222574359,73.28296297,104.89,104.82,3.814]
[1646222574559,75.60641679,104.89,104.82,3.814]
[1646222574763,208.87904326,104.89,104.82,3.814]
[1646222574959,224.23304326,104.89,104.82,3.814]
[1646222575359,5.0,104.88,104.82,3.814]
[1646222575563,14.3121,104.87,104.83,6.5337948]
[1646222576162,14.3121,104.87,104.82,3.814]
[1646222577161,45.9755922,104.86,104.82,48.902512]
[1646222577964,45.9755922,104.86,104.82,3.814]
[1646222578969,60.2879922,104.86,104.82,3.814]
[1646222583780,45.9755922,104.86,104.82,3.814]
[1646222584671,45.9755922,104.86,104.83,6.65487118]
[1646222585076,14.3111,104.87,104.83,6.65487118]
[1646222585273,33.2463,104.89,104.83,6.65487118]
[1646222585573,28.2463,104.89,104.83,6.65487118]
[1646222585773,24.4323,104.89,104.83,6.65487118]
[1646222585973,48.08745176,104.88,104.83,6.65487118]
[1646222587179,38.7412,104.89,104.83,6.65487118]
[1646222587976,38.7412,104.89,104.79,23.9443]
[1646222587977,156.23449323,104.89,104.79,23.9443]
[1646222588176,60.19449323,104.89,104.8,6.0]
[1646222588376,71.73449323,104.89,104.8,6.0]
[1646222588579,3.815,104.88,104.8,6.0]
[1646222588776,14.312,104.87,104.8,6.0]
[1646222588976,14.312,104.87,104.81,56.18645252]
[1646222588977,59.661513,104.87,104.81,56.18645252]
[1646222590579,14.312,104.87,104.81,56.18645252]
[1646222590980,38.7411,104.89,104.81,114.00645252]
[1646222591279,24.4323,104.89,104.82,24.018]
[1646222591578,24.4323,104.89,104.83,8.84643216]
[1646222591777,24.4323,104.89,104.83,9.09643216]
[1646222594183,24.4323,104.89,104.83,8.84643216]
[1646222595581,38.7404,104.89,104.83,8.84643216]
[1646222596583,95.74543033,104.89,104.83,8.84643216]
[1646222597183,107.28543033,104.89,104.83,8.84643216]
[1646222597585,2.32345382,104.88,104.83,8.84643216]
[1646222597784,38.62418499,104.87,104.83,8.84643216]
[1646222598586,14.3121,104.87,104.83,8.84643216]
[1646222602191,93.81856214,104.89,104.83,8.84643216]
[1646222611803,42.5553,104.89,104.83,8.84643216]
[1646222613927,31.58818502,104.88,104.83,8.84643216]
[1646222615127,45.89778502,104.88,104.83,8.84643216]
[1646222615729,28.2463,104.89,104.83,8.84643216]
[1646222615931,3.814,104.89,104.83,66.41643216]
[1646222616335,3.814,104.89,104.83,8.84643216]
[1646222616733,56.50334652,104.89,104.83,9.09643216]
[1646222617631,52.68934652,104.89,104.83,9.09643216]
[1646222618635,52.68934652,104.89,104.83,8.84643216]
[1646222618832,52.68934652,104.89,104.83,66.41643216]
[1646222619235,52.68934652,104.89,104.83,8.84643216]
[1646222620234,66.99764652,104.89,104.83,8.84643216]
[1646222620637,66.99764652,104.89,104.82,22.978]
[1646222620836,69.32752555,104.89,104.81,22.5963]
[1646222621039,66.78717204,104.89,104.81,22.5963]
[1646222621239,71.78717204,104.89,104.81,22.5963]
[1646222621639,94.46407204,104.89,104.81,76.24593776]
[1646222621839,106.00407204,104.89,104.81,76.24593776]
[1646222622040,101.00407204,104.89,104.81,76.24593776]
[1646222622350,106.00407204,104.89,104.81,76.24593776]
[1646222622541,197.04407204,104.89,104.81,76.24593776]
[1646222622742,202.04407204,104.89,104.81,22.5963]
[1646222622943,3.814,104.88,104.81,22.5963]
[1646222623242,14.3138,104.86,104.77,80.9005]
[1646222623647,28.62776881,104.85,104.78,60.11994888]
[1646222624145,14.3138,104.86,104.78,60.11994888]
[1646222624346,14.3138,104.86,104.79,23.2499]
[1646222625246,14.3138,104.86,104.8,7.4532893]
[1646222625948,18.33673646,104.85,104.8,7.4532893]
[1646222626348,14.3138,104.86,104.8,7.4532893]
[1646222627450,23.3045,104.87,104.8,65.2732893]
[1646222627950,23.3045,104.87,104.8,69.0882893]
[1646222628755,23.3045,104.87,104.8,11.5182893]
[1646222629252,69.84026762,104.88,104.8,25.8264893]
[1646222629452,69.84026762,104.88,104.82,53.57961616]
[1646222629652,69.84026762,104.88,104.82,53.82961616]
[1646222629853,14.3102,104.88,104.82,53.82961616]
[1646222630352,14.3076,104.9,104.82,53.82961616]
[1646222630554,14.3076,104.9,104.83,23.7748]
[1646222630755,14.3076,104.9,104.83,24.0248]
[1646222630955,63.21026321,104.9,104.84,13.99362202]
[1646222631355,14.3076,104.9,104.84,13.99362202]
[1646222631562,22.6193,104.91,104.84,14.24362202]
[1646222631760,37.3982,104.92,104.84,14.24362202]
[1646222631954,37.3982,104.92,104.85,22.6915]
[1646222632374,88.76950625,104.92,104.86,48.70207187]
[1646222633876,108.01333281,104.92,104.86,48.70207187]
[1646222636584,122.57413281,104.92,104.86,48.70207187]
[1646222641983,103.33030625,104.92,104.86,48.70207187]
[1646222643884,51.959,104.92,104.86,48.70207187]
[1646222644086,37.3982,104.92,104.86,48.70207187]
[1646222646087,23.0933,104.92,104.86,48.95207187]
[1646222646291,57.19782656,104.94,104.86,48.95207187]
[1646222646488,57.19782656,104.94,104.87,24.6782]
[1646222647090,37.954,104.94,104.88,18.87116631]
[1646222647391,105.90631252,104.96,104.88,18.87116631]
[1646222647591,130.85131252,104.96,104.9,43.82483563]
[1646222648195,85.91562656,104.96,104.9,43.82483563]
[1646222648394,66.6718,104.96,104.9,43.82483563]
[1646222648597,3.811,104.96,104.9,43.82483563]
[1646222648797,17.37124068,104.97,104.9,43.82483563]
[1646222648996,37.35162656,104.98,104.9,43.82483563]
[1646222649196,89.6982744,104.98,104.9,43.82483563]
[1646222649398,89.6982744,104.98,104.91,6.0]
[1646222649598,89.6982744,104.98,104.92,23.74840255]
[1646222649797,107.06951508,104.98,104.92,23.74840255]
[1646222650402,13.36998102,104.97,104.92,23.74840255]
[1646222650600,14.299,104.96,104.92,23.74840255]
[1646222651605,40.72911398,104.96,104.92,23.74840255]
[1646222651906,14.299,104.96,104.92,23.74840255]
[1646222652307,14.299,104.96,104.91,23.086]
[1646222653404,55.99046379,104.95,104.91,23.086]
[1646222654904,70.29066379,104.95,104.9,50.36921642]
[1646222656007,70.29066379,104.95,104.88,23.5481]
[1646222656208,209.08661006,104.95,104.88,23.5481]
[1646222656407,220.62661006,104.95,104.88,23.5481]
[1646222656608,5.0,104.94,104.88,23.5481]
[1646222657010,37.09149803,104.93,104.88,23.5481]
[1646222657208,37.09149803,104.93,104.83,3.813]
[1646222657411,102.88877764,104.93,104.83,3.813]
[1646222657608,102.88877764,104.93,104.83,4.063]
[1646222657809,88.55828441,104.93,104.83,4.063]
[1646222658010,92.37128441,104.93,104.83,4.063]
[1646222658211,92.37128441,104.93,104.84,45.26236437]
[1646222658410,92.37128441,104.93,104.84,45.51236437]
[1646222659933,106.61958441,104.93,104.84,45.51236437]
[1646222660433,118.15958441,104.93,104.84,45.51236437]
[1646222661236,99.28970538,104.93,104.84,45.51236437]
[1646222662038,85.04140538,104.93,104.84,45.51236437]
[1646222662236,85.04140538,104.93,104.85,22.5292]
[1646222662436,85.04140538,104.93,104.86,22.31087381]
[1646222665739,62.25510735,104.93,104.86,22.31087381]
[1646222666039,39.1642,104.93,104.86,22.31087381]
[1646222666338,39.1642,104.93,104.86,22.56087381]
[1646222666742,24.859,104.93,104.86,22.56087381]
[1646222667139,33.57880735,104.95,104.86,22.56087381]
[1646222667341,19.57701378,104.94,104.87,22.5862]
[1646222667538,19.57701378,104.94,104.88,45.26236437]
[1646222667739,19.27790735,104.95,104.88,45.26236437]
[1646222669140,14.302,104.94,104.88,45.26236437]
[1646222670342,41.51135453,104.94,104.88,45.26236437]
[1646222670742,14.302,104.94,104.88,45.26236437]
[1646222671944,67.25817738,104.94,104.88,45.26236437]
[1646222675548,81.34297738,104.94,104.88,45.26236437]
[1646222676151,67.25817738,104.94,104.88,45.26236437]
[1646222680455,67.25817738,104.94,104.88,45.51236437]
[1646222686166,14.302,104.94,104.88,45.51236437]
[1646222686764,19.27790735,104.95,104.88,45.51236437]
[1646222688865,62.5336,104.96,104.88,45.51236437]
[1646222689265,62.5336,104.96,104.89,23.0882]
[1646222689466,48.234,104.96,104.89,23.3382]
[1646222689665,33.11537401,104.98,104.89,27.1492]
[1646222690265,13.37325493,104.97,104.89,27.1492]
[1646222690466,86.92668807,104.97,104.9,22.31087381]
[1646222691066,73.55343314,104.97,104.9,22.31087381]
[1646222691672,96.56213314,104.97,104.9,22.31087381]
[1646222692794,96.56213314,104.97,104.9,26.12187381]
[1646222692995,192.60213314,104.97,104.9,26.12187381]
[1646222693697,192.60213314,104.97,104.9,22.31087381]
[1646222694495,196.41313314,104.97,104.9,22.31087381]